bitfinex/quotes_SOLUSD_20250416
["timestamp","ask_amount","ask_price","bid_price","bid_amount"]
[1744815911031,34.97562567,128.08,128.07,0.063]
[1744815911224,34.97562567,128.09,128.07,0.063]
[1744815911545,12.36,128.11,128.08,34.97562567]
[1744815911919,47.33562567,128.11,128.07,35.03862567]
[1744815912136,34.97562567,128.1,128.07,0.063]
[1744815912344,34.97562567,128.08,128.07,0.063]
[1744815912722,53.62527453,128.08,128.07,0.063]
[1744815912929,73.62527453,128.08,128.07,0.063]
[1744815913348,81.43289476,128.08,128.07,0.063]
[1744815915341,12.36,128.1,128.07,0.063]
[1744815915646,34.97562567,128.08,128.07,0.063]
[1744815917748,34.97562567,128.09,128.07,0.063]
[1744815918052,47.33562567,128.1,128.07,0.063]
[1744815918257,12.36,128.1,128.07,35.03862567]
[1744815918432,18.64964886,128.12,128.08,42.7832459]
[1744815919357,34.97562567,128.13,128.08,42.7832459]
[1744815919854,34.97562567,128.13,128.09,34.97562567]
[1744815920153,31.00964886,128.14,128.11,34.97562567]
[1744815920351,12.36,128.14,128.12,42.78080831]
[1744815920560,12.36,128.14,128.12,7.80518264]
[1744815921436,53.62527453,128.13,128.07,45.5830915]
[1744815921639,47.33562567,128.14,128.1,34.97562567]
[1744815921937,12.36,128.14,128.11,34.97562567]
[1744815922133,243.46,128.17,128.12,34.97562567]
[1744815922354,243.46,128.17,128.14,42.77918018]
[1744815922660,34.97562567,128.17,128.13,7.80432998]
[1744815923058,53.62527453,128.16,128.12,42.78053657]
[1744815923245,53.62527453,128.16,128.12,7.8049109]
[1744815923443,34.97562567,128.15,128.12,7.8049109]
[1744815923643,34.97562567,128.14,128.11,7.80548983]
[1744815923844,34.97562567,128.14,128.07,14.0313]
[1744815923845,34.97562567,128.12,128.07,1.6713]
[1744815924042,34.97562567,128.1,128.08,7.80762023]
[1744815924456,34.97562567,128.1,128.07,0.063]
[1744815924457,34.97562567,128.1,128.07,7.87122987]
[1744815925867,34.97562567,128.08,128.07,0.063]
[1744815926868,53.62527453,128.08,128.07,0.063]
[1744815927370,91.98527453,128.08,128.06,0.063]
[1744815927546,44.64964886,128.05,128.04,0.063]
[1744815927872,114.6009002,128.05,128.04,0.063]
[1744815928160,18.64964886,128.0,127.99,0.063]
[1744815928359,65.98527453,128.0,127.99,0.063]
[1744815929266,12.36,128.0,127.99,0.063]
[1744815929564,34.97562567,128.01,127.99,0.063]
[1744815929565,47.33562567,128.04,128.0,7.8125]
[1744815929738,18.64964886,128.07,128.02,34.97562567]
[1744815929939,12.36,128.08,128.04,34.97562567]
[1744815930151,18.64964886,128.07,128.03,34.97562567]
[1744815930372,53.62527453,128.07,128.02,34.97562567]
[1744815930545,18.64964886,128.07,128.03,34.97562567]
[1744815930871,47.33562567,128.08,128.04,34.97562567]
[1744815931362,47.33562567,128.08,128.03,60.97562567]
[1744815931565,47.33562567,128.08,128.04,7.81005935]
[1744815931767,12.36,128.08,128.04,42.78568502]
[1744815932342,12.36,128.08,128.04,7.81005935]
[1744815932549,18.64964886,128.12,128.07,34.97562567]
[1744815932749,243.62,128.13,128.09,34.97562567]
[1744815932955,12.36,128.14,128.1,34.97562567]
[1744815933156,34.97562567,128.11,128.04,7.81005935]
[1744815933344,34.97562567,128.06,128.02,7.81127948]
[1744815933546,34.97562567,128.07,128.02,42.78690515]
[1744815933743,34.97562567,128.07,128.03,34.97562567]
[1744815934152,34.97562567,128.08,128.03,34.97562567]
[1744815934465,34.97562567,128.07,128.03,34.97562567]
[1744815934966,34.97562567,128.07,128.02,88.31510386]
[1744815935156,34.97562567,128.05,128.02,7.81127948]
[1744815935462,34.97562567,128.07,128.02,42.78690515]
[1744815935763,34.97562567,128.07,128.03,34.97562567]
[1744815935969,34.97562567,128.07,128.02,54.50382438]
[1744815936870,34.97562567,128.06,128.02,34.97562567]
[1744815937168,34.97562567,128.03,128.01,0.063]
[1744815937500,27.80520414,128.12,128.05,26.0]
[1744815937768,34.97562567,128.11,128.06,42.78446527]
[1744815937968,34.97562567,128.09,128.06,7.8088396]
[1744815938341,53.62527453,128.1,128.06,7.8088396]
[1744815938566,18.64964886,128.1,128.06,42.78446527]
[1744815938753,18.64964886,128.1,128.07,34.97562567]
[1744815939263,34.97562567,128.12,128.07,34.97562567]
[1744815939560,18.64964886,128.12,128.1,7.80640124]
[1744815940343,53.62527453,128.12,128.09,7.80695404]
[1744815940561,53.62527453,128.12,128.06,19.52209901]
[1744815940562,34.97562567,128.11,128.06,19.52209901]
[1744815940861,34.97562567,128.11,128.07,42.78356654]
[1744815941065,34.97562567,128.11,128.04,7.81005935]
[1744815941066,34.97562567,128.09,128.04,7.81005935]
[1744815941270,34.97562567,128.07,128.04,7.81005935]
[1744815941660,34.97562567,128.07,128.03,27.33590416]
[1744815942060,34.97562567,128.06,128.03,7.81066937]
[1744815942870,34.97562567,128.04,128.02,7.81112841]
[1744815943176,53.62527453,128.05,128.02,7.81112841]
[1744815943375,34.97562567,128.04,128.01,7.87475152]
[1744815943670,34.97562567,128.03,128.01,0.063]
[1744815944553,34.97562567,128.04,128.01,0.063]
[1744815945176,12.36,128.05,128.01,35.03862567]
[1744815945470,12.36,128.05,128.02,34.97562567]
[1744815945857,12.36,128.05,128.03,7.81066937]
[1744815946868,12.36,128.05,128.02,7.81105694]
[1744815947566,18.64964886,128.07,128.02,42.78668261]
[1744815947567,53.62527453,128.07,128.02,42.78668261]
[1744815947759,34.97562567,128.08,128.04,7.81005935]
[1744815947956,18.64964886,128.08,128.04,42.78568502]
[1744815948166,53.62527453,128.08,128.04,42.78568502]
[1744815948372,53.62527453,128.08,128.03,7.81036839]
[1744815948373,34.97562567,128.07,128.03,7.81036839]
[1744815948561,34.97562567,128.06,128.03,7.81036839]
[1744815948770,34.97562567,128.06,128.02,7.8110291]
[1744815949271,34.97562567,128.05,128.02,7.8110291]
[1744815949662,20.0,128.07,128.01,0.063]
[1744815949663,34.97562567,128.03,128.01,0.063]
[1744815949869,34.97562567,128.02,128.01,0.063]
[1744815950076,53.62527453,128.04,128.01,0.063]
[1744815950263,65.98527453,128.04,128.01,0.063]
[1744815950662,12.36,128.04,128.01,35.03862567]
[1744815950962,53.62527453,128.07,128.03,34.97562567]
[1744815951479,18.64964886,128.07,128.03,34.97562567]
[1744815951679,12.36,128.08,128.04,34.97562567]
[1744815951980,12.36,128.08,128.06,34.97562567]
[1744815952968,12.36,128.08,128.05,7.80944943]
[1744815953282,53.62527453,128.07,128.02,7.81127948]
[1744815953459,53.62527453,128.07,128.02,42.78690515]
[1744815953774,34.97562567,128.04,128.01,0.063]
[1744815954154,26.0,128.07,128.03,34.97562567]
[1744815954360,60.97562567,128.07,128.03,34.97562567]
[1744815954576,68.7838625,128.07,128.02,34.97562567]
[1744815954767,34.97562567,128.05,128.01,35.03862567]
[1744815955578,53.62527453,128.06,128.01,35.03862567]
[1744815956079,34.97562567,128.05,128.01,0.063]
[1744815956479,34.97562567,128.05,128.01,35.03862567]
[1744815956784,53.62527453,128.06,128.02,34.97562567]
[1744815956978,26.0,128.07,128.03,34.97562567]
[1744815957184,18.64964886,128.07,128.03,34.97562567]
[1744815957387,47.33562567,128.08,128.04,34.97562567]
[1744815957559,47.33562567,128.08,128.03,34.97562567]
[1744815958160,53.62527453,128.07,128.02,34.97562567]
[1744815958378,34.97562567,128.06,128.02,34.97562567]
[1744815958860,53.62527453,128.07,128.02,34.97562567]
[1744815959184,34.97562567,128.06,128.02,42.78690515]
[1744815959384,53.62527453,128.07,128.02,42.78690515]
[1744815959564,53.62527453,128.07,128.03,34.97562567]
[1744815959882,61.4338775,128.07,128.02,7.81127948]
[1744815960065,34.97562567,128.06,128.02,7.81127948]
[1744815960263,34.97562567,128.05,128.01,42.85048197]
[1744815960479,34.97562567,128.04,128.01,0.063]
[1744815960789,53.62527453,128.05,128.01,0.063]
[1744815961385,18.64964886,128.05,128.01,42.85040177]
[1744815961580,18.64964886,128.06,128.03,34.97562567]
[1744815962091,53.62527453,128.05,128.01,42.85040177]
[1744815962393,53.62527453,128.05,128.01,0.063]
[1744815962688,79.62527453,128.02,128.01,0.063]
[1744815962986,26.291,128.05,128.01,0.063]
[1744815963161,18.64964886,128.05,128.02,34.97562567]
[1744815963360,26.45922252,128.05,128.02,34.97562567]
[1744815963581,18.64964886,128.05,128.01,42.85033472]
[1744815963885,18.64964886,128.05,128.02,34.97562567]
[1744815964078,61.43478948,128.05,128.01,42.85033472]
[1744815964686,53.62527453,128.05,128.01,42.85033472]
[1744815965987,60.97562567,128.06,128.01,42.85033472]
[1744815966166,18.64964886,128.07,128.03,34.97562567]
[1744815966673,34.97562567,128.04,128.01,7.87470905]
[1744815966879,34.97562567,128.04,128.01,0.063]
[1744815967271,34.97562567,128.04,128.01,7.8747634]
[1744815967459,34.97562567,128.04,128.01,0.063]
[1744815968976,53.62527453,128.02,128.01,0.063]
[1744815970467,27.8413,128.09,128.01,35.03862567]
[1744815970674,82.98418807,128.09,128.04,34.97562567]
[1744815970886,34.97562567,128.06,128.01,0.063]
[1744815971073,53.62527453,128.05,128.01,0.063]
[1744815971281,18.64964886,128.04,128.01,35.03862567]
[1744815971586,34.97562567,128.05,128.01,0.063]
[1744815971587,18.64964886,128.03,128.01,0.063]
[1744815971804,34.97562567,128.03,128.01,0.063]
[1744815972164,53.62527453,128.02,128.01,0.063]
[1744815973265,61.43655401,128.02,128.01,0.063]
[1744815973465,87.43655401,128.02,128.01,0.063]
[1744815973691,95.40235401,128.02,128.01,0.063]
[1744815973886,152.30235401,128.02,128.01,0.063]
[1744815974868,95.40235401,128.02,128.01,0.063]
[1744815975069,12.36,128.04,128.01,35.03862567]
[1744815975297,12.36,128.04,128.02,34.97562567]
[1744815975487,12.36,128.04,128.01,35.03862567]
[1744815975689,47.33562567,128.04,128.01,0.063]
[1744815975891,53.62527453,128.03,128.01,0.063]
[1744815976079,18.64964886,128.03,128.01,0.063]
[1744815976485,53.62527453,128.03,128.01,0.063]
[1744815978081,61.43597628,128.03,128.01,0.063]
[1744815978399,53.62527453,128.02,128.01,0.063]
[1744815979104,136.52527453,128.02,128.01,0.063]
[1744815979279,170.33655401,128.02,128.01,0.063]
[1744815979883,87.43655401,128.02,128.01,0.063]
[1744815981007,18.64964886,128.02,128.01,0.063]
[1744815981210,53.62527453,128.04,128.01,0.063]
[1744815981403,34.97562567,128.03,128.01,0.063]
[1744815981703,53.62527453,128.02,128.01,0.063]
[1744815981904,53.62527453,128.03,128.01,0.063]
[1744815982106,18.64964886,128.04,128.01,0.063]
[1744815982286,53.62527453,128.04,128.01,0.063]
[1744815983709,34.97562567,128.03,128.01,0.063]
[1744815985406,53.62527453,128.02,128.01,0.063]
[1744815986008,26.0,128.0,127.99,0.063]
[1744815986304,26.0,128.0,127.97,0.063]
[1744815986305,38.64964886,127.98,127.97,0.063]
[1744815986489,108.6009002,127.98,127.97,0.063]
[1744815986693,73.62527453,127.98,127.97,0.063]
[1744815987012,18.64964886,128.02,127.97,42.85295715]
[1744815987212,34.97562567,128.01,127.97,42.85295715]
[1744815987520,18.64964886,128.02,127.97,7.87710671]
[1744815987691,26.0,128.04,127.99,34.97562567]
[1744815987893,18.64964886,128.03,127.99,34.97562567]
[1744815988306,53.62527453,128.03,127.99,34.97562567]
[1744815988813,18.64964886,128.04,128.0,26.0]
[1744815988992,18.64964886,128.04,128.0,60.97562567]
[1744815989194,18.64964886,128.04,128.01,7.81188969]
[1744815989393,34.97562567,128.05,128.01,42.78751536]
[1744815989617,34.97562567,128.05,128.01,7.81188969]
[1744815990807,46.45797141,128.07,128.01,7.81188969]
[1744815990808,0.03,128.1,128.04,34.97562567]
[1744815991018,34.97562567,128.07,128.02,60.97562567]
[1744815991314,34.97562567,128.06,128.02,26.0]
[1744815991709,46.0,128.08,128.01,27.34161393]
[1744815991891,34.97562567,128.04,128.01,27.34161393]
[1744815992090,34.97562567,128.02,128.01,7.81188969]
[1744815992303,34.97562567,128.02,127.97,27.38061099]
[1744815992533,53.62527453,127.98,127.97,0.063]
[1744815992723,88.6009002,127.98,127.97,0.063]
[1744815993025,53.62527453,127.98,127.97,0.063]
[1744815993199,88.6009002,127.98,127.97,0.063]
[1744815993394,96.41462109,127.98,127.97,0.063]
[1744815993618,18.64964886,127.98,127.97,0.063]
[1744815993799,53.62527453,127.98,127.97,0.063]
[1744815994003,61.43899542,127.98,127.97,0.063]
[1744815994500,96.41462109,127.98,127.97,0.063]
[1744815995101,18.64964886,127.98,127.97,0.063]
[1744815995312,53.62527453,127.98,127.97,0.063]
[1744815996300,12.34,128.01,127.97,35.03862567]
[1744815996501,34.97562567,128.0,127.97,0.063]
[1744815996716,12.34,128.01,127.97,0.063]
[1744815996717,34.97562567,127.99,127.97,0.063]
[1744815997308,34.97562567,128.0,127.97,0.063]
[1744815997502,65.96527453,128.01,127.97,0.063]
[1744815998513,34.97562567,128.0,127.97,0.063]
[1744815998921,34.97562567,127.98,127.97,0.063]
[1744816000120,61.43899542,127.98,127.97,0.063]
[1744816001199,34.97562567,127.98,127.97,0.063]
[1744816001409,34.97562567,127.99,127.97,0.063]
[1744816001846,114.6009002,127.98,127.97,0.063]
[1744816003126,46.46398034,127.97,127.96,0.063]
[1744816003334,81.43960601,127.97,127.96,0.063]
[1744816004027,64.64964886,127.95,127.94,0.063]
[1744816004226,111.98527453,127.95,127.94,0.063]
[1744816004423,31.00964886,127.95,127.94,0.063]
[1744816004725,47.33562567,127.95,127.94,0.063]
[1744816005227,18.64964886,127.97,127.94,0.063]
[1744816005435,34.97562567,127.97,127.94,0.063]
[1744816005610,65.98527453,127.98,127.94,0.063]
[1744816006541,65.98527453,127.98,127.94,7.87916382]
[1744816006827,73.7990045,127.98,127.94,7.87916382]
[1744816007348,73.7990045,127.98,127.94,0.063]
[1744816007705,34.97562567,127.95,127.94,0.063]
[1744816007912,53.62527453,127.95,127.94,0.063]
[1744816008505,26.0,127.92,127.91,0.063]
[1744816008836,126.9609002,127.92,127.91,0.063]
[1744816009343,64.64964886,127.89,127.88,0.063]
[1744816009541,99.62527453,127.89,127.88,0.063]
[1744816010747,107.44449417,127.89,127.88,0.063]
[1744816011436,18.64964886,127.88,127.87,0.063]
[1744816011632,88.6009002,127.88,127.87,0.063]
[1744816011838,121.54964886,127.87,127.86,0.063]
[1744816012026,203.8609002,127.87,127.86,0.063]
[1744816012229,64.64964886,127.85,127.84,0.063]
[1744816012429,99.62527453,127.85,127.84,0.063]
[1744816012728,107.44694054,127.85,127.84,0.063]
[1744816013150,125.97251298,127.85,127.84,0.063]
[1744816013356,18.64964886,127.85,127.84,0.063]
[1744816013541,53.50119811,127.86,127.84,0.063]
[1744816013852,53.50119811,127.85,127.84,0.063]
[1744816014147,31.00964886,127.87,127.84,0.063]
[1744816014351,53.50119811,127.86,127.84,0.063]
[1744816014739,53.50119811,127.85,127.84,0.063]
[1744816015235,12.36,127.87,127.84,0.063]
[1744816015437,62.13131882,127.92,127.86,53.50119811]
[1744816015438,13.78952071,127.92,127.86,53.50119811]
[1744816015657,53.50119811,127.9,127.85,81.05939811]
[1744816015847,53.50119811,127.88,127.85,1.5582]
[1744816016149,53.50119811,127.89,127.85,1.5582]
[1744816016541,75.10823181,127.92,127.87,7.82044263]
[1744816016542,12.36,127.92,127.87,7.82044263]
[1744816016760,53.50119811,127.91,127.87,61.32164074]
[1744816017655,65.86119811,127.92,127.87,61.32164074]
[1744816017953,53.50119811,127.9,127.87,7.82044263]
[1744816018649,53.50119811,127.9,127.86,7.82105427]
[1744816019345,53.50119811,127.9,127.86,61.32225238]
[1744816019641,72.15084697,127.91,127.86,61.32225238]
[1744816019840,12.36,127.92,127.88,53.50119811]
[1744816020459,12.36,127.92,127.86,27.37368996]
[1744816020658,12.36,127.92,127.88,53.50119811]
[1744816020831,18.64964886,127.94,127.9,53.50119811]
[1744816020832,53.50119811,127.94,127.9,53.50119811]
[1744816021160,53.50119811,127.94,127.89,53.50119811]
[1744816021361,53.50119811,127.92,127.87,26.0]
[1744816021537,53.50119811,127.92,127.88,53.50119811]
[1744816021859,18.64964886,127.91,127.86,53.37368996]
[1744816022057,12.36,127.92,127.88,53.50119811]
[1744816022357,65.86119811,127.96,127.91,53.50119811]
[1744816022761,53.50119811,127.94,127.9,7.81860828]
[1744816022955,53.50119811,127.92,127.9,7.81860828]
[1744816023136,53.50119811,127.94,127.9,7.81860828]
[1744816023337,53.50119811,127.94,127.9,61.31980639]
[1744816023746,53.50119811,127.93,127.9,7.81860828]
[1744816023947,53.50119811,127.94,127.9,7.81860828]
[1744816024335,53.50119811,127.94,127.9,61.31980639]
[1744816024746,53.50119811,127.94,127.9,7.81860828]
[1744816024962,53.50119811,127.93,127.9,7.81860828]
[1744816025552,18.64964886,127.95,127.9,61.31980639]
[1744816025747,53.50119811,127.94,127.9,61.31980639]
[1744816026062,53.50119811,127.93,127.9,7.81860828]
[1744816026761,53.50119811,127.91,127.87,7.82044263]
[1744816026945,53.50119811,127.89,127.87,7.82044263]
[1744816027143,38.64964886,127.95,127.87,7.82044263]
[1744816027358,53.50119811,127.91,127.87,7.82044263]
[1744816027578,53.50119811,127.9,127.87,7.82044263]
[1744816028363,18.64964886,127.92,127.87,61.32164074]
[1744816028570,53.50119811,127.91,127.87,7.82044263]
[1744816029345,53.50119811,127.9,127.87,7.82044263]
[1744816029545,53.50119811,127.91,127.87,7.82044263]
[1744816029767,53.50119811,127.89,127.87,7.82044263]
[1744816029967,53.50119811,127.9,127.87,7.82044263]
[1744816033271,35.22524756,127.9,127.87,7.82044263]
[1744816033669,35.22524756,127.89,127.87,7.82044263]
[1744816034368,27.8157578,127.95,127.88,35.22524756]
[1744816034547,35.22524756,127.93,127.88,35.22524756]
[1744816034878,35.22524756,127.91,127.87,62.59679678]
[1744816035168,35.22524756,127.92,127.87,62.59679678]
[1744816035360,35.22524756,127.92,127.88,35.22524756]
[1744816035561,35.22524756,127.92,127.87,27.37154922]
[1744816035769,35.22524756,127.91,127.87,62.59679678]
[1744816036070,35.22524756,127.92,127.87,62.59679678]
[1744816036245,35.22524756,127.92,127.87,27.37154922]
[1744816036450,35.22524756,127.9,127.87,7.82044263]
[1744816037173,35.22524756,127.92,127.88,35.22524756]
[1744816037375,35.22524756,127.94,127.91,7.81799702]
[1744816038046,35.22524756,127.93,127.91,7.81799702]
[1744816038448,35.22524756,127.92,127.89,7.81921964]
[1744816038666,35.22524756,127.91,127.89,7.81921964]
[1744816039373,35.22524756,127.91,127.88,7.81983109]
[1744816041664,35.22524756,127.9,127.88,7.81983109]
[1744816042255,35.22524756,127.89,127.84,0.063]
[1744816042461,35.22524756,127.86,127.84,7.88511758]
[1744816042666,18.64964886,127.89,127.84,0.063]
[1744816042667,35.22524756,127.85,127.84,0.063]
[1744816043157,77.00964886,127.89,127.84,0.063]
[1744816043369,35.22524756,127.85,127.84,0.063]
[1744816043572,7.81983109,127.88,127.84,0.063]
[1744816043768,35.22524756,127.85,127.84,0.063]
[1744816047468,26.1169,127.93,127.85,26.0]
[1744816047675,18.64964886,127.92,127.88,7.81983109]
[1744816047852,35.22524756,127.9,127.87,7.82015417]
[1744816048176,35.22524756,127.89,127.87,7.82015417]
[1744816048979,61.69231432,127.92,127.86,7.82105427]
[1744816049181,35.22524756,127.89,127.86,7.82105427]
[1744816049986,61.69231432,127.92,127.86,7.82105427]
[1744816049987,35.22524756,127.88,127.86,7.82105427]
[1744816050285,35.22524756,127.89,127.86,7.82105427]
[1744816050974,35.22524756,127.88,127.86,7.82105427]
[1744816051177,35.22524756,127.89,127.85,7.82166601]
[1744816051764,35.22524756,127.88,127.85,7.82166601]
[1744816051954,53.87489642,127.89,127.85,7.82166601]
[1744816052474,35.22524756,127.89,127.85,7.82166601]
[1744816052669,26.46803427,127.91,127.85,7.82166601]
[1744816052670,35.22524756,127.88,127.85,7.82166601]
[1744816052863,35.22524756,127.89,127.85,7.82166601]
[1744816053173,18.64964886,127.93,127.89,7.81921964]
[1744816053582,35.22524756,127.92,127.89,7.81921964]
[1744816054362,35.22524756,127.91,127.88,7.81983109]
[1744816054569,35.22524756,127.92,127.86,26.0]
[1744816054771,35.22524756,127.9,127.86,61.22524756]
[1744816055190,35.22524756,127.91,127.86,61.22524756]
[1744816055362,35.22524756,127.91,127.86,88.59893752]
[1744816055570,35.22524756,127.91,127.87,35.22524756]
[1744816056583,35.22524756,127.92,127.88,62.59465637]
[1744816056989,35.22524756,127.92,127.88,27.36940881]
[1744816057490,35.22524756,127.92,127.88,62.59465637]
[1744816057866,35.22524756,127.91,127.88,27.36940881]
[1744816058390,35.22524756,127.91,127.88,7.81983109]
[1744816058995,35.22524756,127.9,127.88,7.81983109]
[1744816059293,35.22524756,127.91,127.88,7.81983109]
[1744816059482,18.64964886,127.93,127.88,7.81983109]
[1744816059667,53.87489642,127.93,127.88,43.04507865]
[1744816059867,35.22524756,127.92,127.88,27.36940881]
[1744816060485,35.22524756,127.91,127.88,7.81983109]
[1744816060791,35.22524756,127.91,127.87,7.82044263]
[1744816061095,35.22524756,127.91,127.87,62.59679678]
[1744816061472,35.22524756,127.92,127.87,62.59679678]
[1744816062180,35.22524756,127.91,127.87,62.59679678]
[1744816062767,35.22524756,127.92,127.88,35.22524756]
[1744816062974,35.22524756,127.93,127.89,35.22524756]
[1744816063175,30.98964886,127.95,127.9,35.22524756]
[1744816063488,66.21489642,127.95,127.9,61.22524756]
[1744816064089,35.22524756,127.94,127.9,26.0]
[1744816064583,35.22524756,127.94,127.9,61.22524756]
[1744816064896,35.22524756,127.94,127.91,7.81799702]
[1744816065602,35.22524756,127.92,127.89,7.81921964]
[1744816066493,18.64964886,127.94,127.89,62.5925163]
[1744816066494,35.22524756,127.93,127.89,62.5925163]
[1744816067076,35.22524756,127.94,127.89,62.5925163]
[1744816067387,35.22524756,127.93,127.89,62.5925163]
[1744816067589,35.22524756,127.92,127.89,7.81921964]
[1744816068093,35.22524756,127.91,127.89,7.81921964]
[1744816068485,35.22524756,127.92,127.89,7.81921964]
[1744816069468,35.22524756,127.93,127.89,7.81921964]
[1744816069673,35.22524756,127.92,127.89,7.81921964]
[1744816070789,18.64964886,127.94,127.89,7.81921964]
[1744816070997,35.22524756,127.92,127.89,7.81921964]
[1744816072479,35.22524756,127.93,127.89,7.81921964]
[1744816073282,18.64964886,127.94,127.89,49.37377213]
[1744816073594,22.00650339,127.94,127.89,49.37377213]
[1744816073783,22.00650339,127.92,127.89,7.81921964]
[1744816073975,22.00650339,127.91,127.89,7.81921964]
[1744816074473,22.00650339,127.92,127.89,7.81921964]
[1744816076001,52.99615225,127.95,127.91,7.81799702]
[1744816076669,22.00650339,127.94,127.91,7.81799702]
[1744816076873,34.34650339,127.95,127.91,7.81799702]
[1744816077379,22.00650339,127.94,127.91,7.81799702]
[1744816077900,34.34650339,127.95,127.91,7.81799702]
[1744816078098,34.34650339,127.95,127.91,29.82450041]
[1744816078302,34.34650339,127.95,127.91,7.81799702]
[1744816078511,34.34650339,127.95,127.91,27.36298959]
[1744816078901,12.34,127.95,127.91,27.36298959]
[1744816079211,12.34,127.95,127.91,49.36949298]
[1744816079386,12.34,127.95,127.93,22.00650339]
[1744816079704,12.34,127.95,127.92,22.00650339]
[1744816080198,12.34,127.95,127.93,7.81677479]
[1744816080403,12.34,127.95,127.93,29.82327818]
[1744816080600,22.00650339,127.97,127.93,29.82327818]
[1744816080910,22.00650339,127.97,127.93,7.81677479]
[1744816081403,22.00650339,127.97,127.93,27.35871178]
[1744816081602,0.03,127.98,127.94,22.00650339]
[1744816081791,0.03,127.98,127.95,22.00650339]
[1744816082107,0.03,127.98,127.96,22.00650339]
[1744816082408,0.03,127.98,127.97,7.81433148]
[1744816082900,22.03650339,127.98,127.96,7.81494216]
[1744816083108,0.03,127.98,127.96,7.81494216]
[1744816083405,22.03650339,127.98,127.96,7.81494216]
[1744816084104,0.03,127.98,127.96,7.81494216]
[1744816084291,0.03,127.98,127.94,43.17006392]
[1744816084292,22.03650339,127.98,127.95,7.81555295]
[1744816084499,0.03,127.98,127.95,49.36093871]
[1744816084674,0.03,127.98,127.96,22.00650339]
[1744816085181,0.03,127.98,127.97,22.00650339]
[1744816085900,0.03,127.98,127.96,22.00650339]
[1744816086204,0.03,127.98,127.95,49.36093871]
[1744816087620,0.03,127.98,127.96,22.00650339]
[1744816087808,0.03,127.98,127.97,22.00650339]
[1744816089307,0.03,127.99,127.97,22.00650339]
[1744816089491,0.03,127.99,127.98,29.82022428]
[1744816090002,0.03,127.99,127.98,7.81372089]
[1744816091491,1e-08,127.99,127.98,29.82022428]
[1744816092704,1e-08,127.99,127.98,7.81372089]
[1744816093286,22.0065034,127.99,127.96,7.81494216]
[1744816093887,22.00650339,127.97,127.94,7.81616382]
[1744816094088,22.00650339,127.95,127.92,7.81738586]
[1744816094283,22.00650339,127.94,127.92,7.81738586]
[1744816095015,22.00650339,127.93,127.9,7.81860828]
[1744816095311,22.00650339,127.94,127.9,53.36512899]
[1744816095488,22.00650339,127.93,127.9,27.36512899]
[1744816095692,22.00650339,127.93,127.9,53.36512899]
[1744816095916,22.00650339,127.94,127.9,53.36512899]
[1744816096088,22.00650339,127.94,127.9,75.37163238]
[1744816096812,22.00650339,127.95,127.91,22.00650339]
[1744816098312,22.00650339,127.95,127.9,75.37163238]
[1744816098613,22.00650339,127.94,127.9,75.37163238]
[1744816099204,22.00650339,127.95,127.9,75.37163238]
[1744816099823,22.00650339,127.94,127.9,53.36512899]
[1744816101121,22.00650339,127.94,127.9,75.37163238]
[1744816101306,22.00650339,127.95,127.91,22.00650339]
[1744816101813,22.00650339,127.94,127.9,75.37163238]
[1744816102029,22.00650339,127.93,127.92,26.0]
[1744816102194,22.00650339,127.94,127.92,26.0]
[1744816103194,22.00650339,127.94,127.93,7.81677479]
[1744816103521,22.00650339,127.95,127.93,7.81677479]
[1744816104620,22.00650339,127.97,127.93,49.36521517]
[1744816104794,1e-08,127.99,127.96,22.00650339]
[1744816105192,1e-08,127.99,127.97,7.81433148]
[1744816105709,22.0065034,127.99,127.97,7.81433148]
[1744816106021,1e-08,127.99,127.97,7.81433148]
[1744816106221,22.0065034,127.99,127.97,7.81433148]
[1744816106726,22.00650339,127.98,127.94,7.81616382]
[1744816106906,22.00650339,127.96,127.94,7.81616382]
[1744816107103,22.00650339,127.98,127.94,49.36307677]
[1744816107298,1e-08,127.99,127.95,22.00650339]
[1744816107499,1e-08,127.99,127.96,22.00650339]
[1744816108327,1e-08,127.99,127.94,53.35657338]
[1744816108624,22.0065034,127.99,127.95,22.00650339]
[1744816108816,22.00650339,127.97,127.94,27.35657338]
[1744816109021,22.00650339,127.97,127.94,7.81616382]
[1744816109222,22.00650339,127.96,127.93,7.81677479]
[1744816110715,1e-08,127.99,127.94,22.00650339]
[1744816111023,22.00650339,127.98,127.93,49.36521517]
[1744816111227,22.00650339,127.97,127.93,27.35871178]
[1744816112125,22.00650339,127.96,127.93,7.81677479]
[1744816112429,22.00650339,127.97,127.93,7.81677479]